[Event "17th Memorial Lezcano Montalvo 2025"]
[Site "Gran Canaria"]
[Date "2025.04.16"]
[Round "5.47"]
[White "Posso Cangrejo, Sergio David"]
[Black "Morell Rojas, Samuel"]
[Result "1/2-1/2"]
[Annotator "NA RC"]
[ECO "B15"]
[WhiteElo "1878"]
[BlackElo "1652"]
[PlyCount "112"]
[EventDate "2025.04.13"]
[EventType "swiss"]
[EventCountry "ESP"]
[SourceTitle "playchess.com"]
[Source "ChessBase"]
[SourceQuality "1"]
[TimeControl "5400+30"]

1. e4 {[%emt 0:02:51]} c6 {[%emt 0:00:01]} 2. d4 {[%emt 0:00:32]} d5 {[%emt 0:00:13]} 3. Nc3 {[%emt 0:00:12]} dxe4 {[%emt 0:00:10]} 4. Nxe4 {[%emt 0:00:08]} Nf6 {[%emt 0:00:07]} 5. Nxf6+ {[%emt 0:00:37]} exf6 {[%emt 0:00:11]} 6. c3 {[%emt 0:00:16]} Bd6 {[%emt 0:00:12]} 7. Bd3 {[%emt 0:00:15]} O-O {[%emt 0:00:27]} 8. Qc2 {[%emt 0:00:08]} Re8+ {[%emt 0:00:09]} 9. Ne2 {[%emt 0:00:08]} h5 {[%emt 0:01:32]} 10. O-O {[%emt 0:00:08]} h4 {[%emt 0:00:09]} 11. Bd2 {[%emt 0:00:06]} h3 {[%emt 0:00:15]} 12. Ng3 {[%emt 0:00:07]} Qc7 {[%emt 0:03:33]} 13. Rfe1 {[%emt 0:07:33]} Rxe1+ {[%emt 0:03:52]} 14. Rxe1 {[%emt 0:00:13]} Nd7 {[%emt 0:00:18]} 15. Re8+ {[%emt 0:21:05]} Nf8 {[%emt 0:00:18]} 16. Bh7+ {[%emt 0:23:09]} Kh8 {[%emt 0:00:07]} 17. Qe4 {[%emt 0:02:33]} g5 {[%emt 0:12:41]} 18. f4 {[%emt 0:15:15]} f5 {[%emt 0:01:22]} 19. Bxf5 {[%emt 0:03:59]} Bxf5 {[%emt 0:01:39]} 20. Nxf5 {[%emt 0:00:11]} Rxe8 {[%emt 0:00:45]} 21. Qxe8 {[%emt 0:00:13]} hxg2 {[%emt 0:00:36]} 22. Kxg2 {[%emt 0:03:55]} Kg8 {[%emt 0:02:33]} 23. fxg5 {[%emt 0:05:12]} Bxh2 {[%emt 0:00:38]} 24. g6 {[%emt 0:04:18]} fxg6 {[%emt 0:02:01]} 25. Nh6+ {[%emt 0:02:33]} Kg7 {[%emt 0:01:17]} 26. Qe3 {[%emt 0:00:47]} Ne6 {[%emt 0:06:59]} 27. Ng4 {[%emt 0:01:41]} Bf4 {[%emt 0:01:48]} 28. Qxe6 {[%emt 0:00:42]} Bxd2 {[%emt 0:00:36]} 29. Ne5 {[%emt 0:00:44]} g5 {[%emt 0:05:36]} 30. Qg6+ {[%emt 0:00:58]} Kf8 {[%emt 0:00:48]} 31. Qf6+ {[%emt 0:00:32]} Kg8 {[%emt 0:00:41]} 32. Ng6 {[%emt 0:01:09]} Qg7 {[%emt 0:01:29]} 33. Qe6+ {[%emt 0:01:26]} Qf7 {[%emt 0:04:06]} 34. Qe4 {[%emt 0:00:08]} Kg7 {[%emt 0:50:21]} 35. Ne7 {[%emt 0:00:49]} Kf8 {[%emt 0:00:00]} 36. Nf5 {[%emt 0:00:37]} Qd5 {[%emt 0:00:00]} 37. Qxd5 {[%emt 0:03:50]} cxd5 {[%emt 0:00:00]} 38. Nd6 {[%emt 0:00:00]} Bc1 {[%emt 0:00:00]} 39. b3 {[%emt 0:00:00]} Bb2 {[%emt 0:00:00]} 40. c4 {[%emt 0:00:00]} dxc4 {[%emt 0:00:00]} 41. bxc4 {[%emt 0:00:00]} Bxd4 {[%emt 0:00:00]} 42. Nxb7 {[%emt 0:00:00]} Ke7 {[%emt 0:00:00]} 43. Na5 {[%emt 0:00:00]} Kd6 {[%emt 0:00:00]} 44. Nb3 {[%emt 0:00:00]} Bf6 {[%emt 0:00:00]} 45. Kf3 {[%emt 0:00:00]} Ke5 {[%emt 0:00:00]} 46. a4 {[%emt 0:00:12]} Kf5 {[%emt 0:00:00]} 47. Na5 {[%emt 0:00:26]} g4+ {[%emt 0:00:00]} 48. Kg2 {[%emt 0:00:54]} Bc3 {[%emt 0:00:00]} 49. Nc6 {[%emt 0:00:30]} a5 {[%emt 0:00:00]} 50. Ne7+ {[%emt 0:00:02]} Ke6 {[%emt 0:00:00]} 51. Nd5 {[%emt 0:00:12]} Bd4 {[%emt 0:00:00]} 52. Kg3 {[%emt 0:00:26]} Kf5 {[%emt 0:00:00]} 53. Ne7+ {[%emt 0:00:12]} Ke6 {[%emt 0:00:00]} 54. Nc6 {[%emt 0:00:11]} Bb6 {[%emt 0:00:00]} 55. Kxg4 {[%emt 0:01:01]} Kd6 {[%emt 0:00:00]} 56. Nxa5 {[%emt 0:01:26]} Bxa5 {[%emt 0:00:00]} 1/2-1/2

[Event "17th Memorial Lezcano Montalvo 2025"]
[Site "Gran Canaria"]
[Date "2025.04.16"]
[Round "5.48"]
[White "Quintero Hernandez, Marcos Jesus"]
[Black "Roca Marrero, Fernando"]
[Result "1-0"]
[Annotator "NA RC"]
[ECO "A24"]
[WhiteElo "1874"]
[BlackElo "1617"]
[PlyCount "64"]
[EventDate "2025.04.13"]
[EventType "swiss"]
[EventCountry "ESP"]
[SourceTitle "playchess.com"]
[Source "ChessBase"]
[SourceQuality "1"]
[TimeControl "5400+30"]

1. c4 {[%emt 0:00:16]} g6 {[%emt 0:00:55]} 2. g3 {[%emt 0:00:08]} Bg7 {[%emt 0:00:07]} 3. Bg2 {[%emt 0:00:06]} d6 {[%emt 0:00:18]} 4. Nc3 {[%emt 0:00:07]} Nf6 {[%emt 0:02:36]} 5. e4 {[%emt 0:00:10]} e5 {[%emt 0:00:52]} 6. Nge2 {[%emt 0:00:05]} O-O {[%emt 0:00:00]} 7. O-O {[%emt 0:02:21]} Be6 {[%emt 0:02:19]} 8. d3 {[%emt 0:00:20]} Nh5 {[%emt 0:04:12]} 9. Be3 {[%emt 0:03:02]} c5 {[%emt 0:00:24]} 10. Qd2 {[%emt 0:00:34]} f5 {[%emt 0:00:19]} 11. f4 {[%emt 0:00:44]} Na6 {[%emt 0:01:08]} 12. exf5 {[%emt 0:00:19]} Bxf5 {[%emt 0:01:02]} 13. Bxb7 {[%emt 0:01:18]} Bh3 {[%emt 0:00:19]} 14. Rf2 {[%emt 0:01:16]} exf4 {[%emt 0:00:38]} 15. Nxf4 {[%emt 0:00:37]} Nxf4 {[%emt 0:00:27]} 16. Rxf4 {[%emt 0:01:19]} Rxf4 {[%emt 0:01:03]} 17. Bxf4 {[%emt 1:26:18]} Bd4+ {[%emt 0:02:33]} 18. Be3 {[%emt 0:00:00]} Qe7 {[%emt 0:00:43]} 19. Bd5+ {[%emt 0:00:00]} Kh8 {[%emt 0:01:51]} 20. Bxd4+ {[%emt 0:00:00]} cxd4 {[%emt 0:01:52]} 21. Bxa8 {[%emt 0:00:00]} dxc3 {[%emt 0:10:21]} 22. Qxc3+ {[%emt 0:02:30]} Qe5 23. Qxe5+ {[%emt 0:00:00]} dxe5 {[%emt 0:00:31]} 24. Be4 {[%emt 0:00:00]} Nc7 {[%emt 0:00:50]} 25. b4 {[%emt 0:00:00]} Ne6 {[%emt 0:00:06]} 26. c5 {[%emt 0:00:00]} Nd4 {[%emt 0:00:04]} 27. Kf2 {[%emt 0:00:00]} Bd7 {[%emt 0:01:57]} 28. Rc1 {[%emt 0:00:00]} a5 {[%emt 0:01:26]} 29. c6 {[%emt 0:00:00]} Bc8 {[%emt 0:00:05]} 30. bxa5 {[%emt 0:00:00]} Kg7 {[%emt 0:00:14]} 31. c7 {[%emt 0:00:00]} Ne6 {[%emt 0:00:14]} 32. a6 {[%emt 0:05:00]} Ng5 1-0

[Event "17th Memorial Lezcano Montalvo 2025"]
[Site "Gran Canaria"]
[Date "2025.04.16"]
[Round "5.49"]
[White "Alonso Perez, Alfredo"]
[Black "Delgado Armas, Francisco David"]
[Result "1-0"]
[Annotator "NA RC"]
[ECO "E17"]
[WhiteElo "1853"]
[BlackElo "1608"]
[PlyCount "87"]
[EventDate "2025.04.13"]
[EventType "swiss"]
[EventCountry "ESP"]
[SourceTitle "playchess.com"]
[Source "ChessBase"]
[SourceQuality "1"]
[TimeControl "5400+30"]

1. d4 {[%emt 0:00:01]} d5 {[%emt 0:00:10]} 2. c4 {[%emt 0:00:08]} e6 {[%emt 0:00:40]} 3. Nf3 {[%emt 0:00:05]} Nf6 {[%emt 0:00:11]} 4. g3 {[%emt 0:00:06]} b6 {[%emt 0:02:04]} 5. Bg2 {[%emt 0:00:09]} Bb7 {[%emt 0:00:07]} 6. O-O {[%emt 0:00:44]} Nbd7 {[%emt 0:01:04]} 7. Nbd2 {[%emt 0:06:35]} c5 {[%emt 0:00:27]} 8. e3 {[%emt 0:04:14]} Be7 {[%emt 0:01:11]} 9. b3 {[%emt 0:01:47]} O-O {[%emt 0:01:25]} 10. Bb2 {[%emt 0:01:11]} Re8 {[%emt 0:00:27]} 11. Qc2 {[%emt 0:02:10]} Rc8 {[%emt 0:01:37]} 12. dxc5 {[%emt 0:03:52]} Bxc5 {[%emt 0:02:54]} 13. Qb1 {[%emt 0:10:39]} Qe7 {[%emt 0:08:25]} 14. a3 {[%emt 0:00:58]} a5 {[%emt 0:01:46]} 15. Qa2 {[%emt 0:00:05]} Bc6 {[%emt 0:13:14]} 16. Nd4 {[%emt 0:07:31]} Ba8 {[%emt 0:04:01]} 17. Nb5 {[%emt 0:09:21]} e5 {[%emt 0:03:58]} 18. Rad1 {[%emt 0:02:36]} e4 {[%emt 0:05:39]} 19. cxd5 {[%emt 0:07:28]} Bxd5 {[%emt 0:01:05]} 20. Nc3 {[%emt 0:01:56]} Bc6 {[%emt 0:04:08]} 21. Nc4 {[%emt 0:01:01]} Nf8 {[%emt 0:02:18]} 22. Rd2 {[%emt 0:04:06]} Rcd8 {[%emt 0:07:19]} 23. Rfd1 {[%emt 0:00:09]} Rxd2 {[%emt 0:00:32]} 24. Rxd2 {[%emt 0:00:08]} Ne6 {[%emt 0:01:30]} 25. h4 {[%emt 0:04:56]} g5 {[%emt 0:00:56]} 26. Ne5 {[%emt 0:04:17]} Bb7 {[%emt 0:05:02]} 27. h5 {[%emt 0:03:05]} Rd8 {[%emt 0:02:00]} 28. Rxd8+ {[%emt 0:00:55]} Nxd8 {[%emt 0:00:12]} 29. Na4 {[%emt 0:01:45]} Nxh5 {[%emt 0:06:22]} 30. Nxc5 {[%emt 0:00:57]} bxc5 {[%emt 0:01:49]} 31. Bc3 {[%emt 0:02:26]} Bd5 {[%emt 0:01:56]} 32. Qd2 {[%emt 0:01:53]} Bxb3 {[%emt 0:05:07]} 33. Bxe4 {[%emt 0:00:31]} a4 {[%emt 0:01:52]} 34. Ng4 {[%emt 0:02:40]} f6 {[%emt 0:04:11]} 35. Bf3 {[%emt 0:01:24]} Kg7 {[%emt 0:01:49]} 36. e4 {[%emt 0:01:00]} Be6 {[%emt 0:01:13]} 37. Qxg5+ {[%emt 0:00:10]} Kf8 {[%emt 0:02:17]} 38. Qxh5 {[%emt 0:00:50]} c4 {[%emt 0:00:26]} 39. Bb4 {[%emt 0:00:16]} Qxb4 {[%emt 0:08:36]} 40. axb4 {[%emt 0:00:10]} Nc6 {[%emt 0:00:00]} 41. Qh6+ {[%emt 0:00:59]} Ke8 {[%emt 0:00:00]} 42. Nxf6+ {[%emt 0:00:21]} Ke7 {[%emt 0:00:00]} 43. Qg7+ {[%emt 0:00:11]} Kd6 {[%emt 0:00:00]} 44. Ne8# {[%emt 0:16:44]} 1-0

[Event "17th Memorial Lezcano Montalvo 2025"]
[Site "Gran Canaria"]
[Date "2025.04.16"]
[Round "5.50"]
[White "Macias Reyes, Jose Luis"]
[Black "Bangiev, Katharina"]
[Result "1-0"]
[Annotator "NA RC"]
[ECO "D02"]
[WhiteElo "1674"]
[BlackElo "1848"]
[PlyCount "109"]
[EventDate "2025.04.13"]
[EventType "swiss"]
[EventCountry "ESP"]
[SourceTitle "playchess.com"]
[Source "ChessBase"]
[SourceQuality "1"]
[TimeControl "5400+30"]

1. d4 {[%emt 0:00:02]} Nf6 {[%emt 0:00:18]} 2. Bf4 {[%emt 0:00:08]} g6 {[%emt 0:00:09]} 3. e3 {[%emt 0:00:08]} Bg7 {[%emt 0:00:20]} 4. Nf3 {[%emt 0:00:12]} O-O {[%emt 0:00:34]} 5. Be2 {[%emt 0:00:24]} d5 {[%emt 0:00:56]} 6. h3 {[%emt 0:00:28]} c5 {[%emt 0:01:00]} 7. Nbd2 {[%emt 0:00:57]} Nc6 {[%emt 0:02:43]} 8. c3 {[%emt 0:01:07]} c4 {[%emt 0:03:31]} 9. b3 {[%emt 0:05:33]} b5 {[%emt 0:01:53]} 10. a4 {[%emt 0:02:40]} b4 {[%emt 0:09:07]} 11. cxb4 {[%emt 0:09:56]} c3 {[%emt 0:02:34]} 12. Nb1 {[%emt 0:01:38]} Ne4 {[%emt 0:01:50]} 13. Qc1 {[%emt 0:09:47]} Nxb4 {[%emt 0:17:50]} 14. Nxc3 {[%emt 0:04:30]} Bxh3 {[%emt 0:09:12]} 15. Rxh3 {[%emt 0:16:45]} Rc8 {[%emt 0:01:28]} 16. Qb2 {[%emt 0:04:08]} Rxc3 {[%emt 0:05:05]} 17. Rc1 {[%emt 0:05:31]} Rxc1+ {[%emt 0:03:32]} 18. Qxc1 {[%emt 0:00:09]} Qa5 {[%emt 0:01:17]} 19. Kf1 {[%emt 0:02:52]} Na2 {[%emt 0:05:00]} 20. Qb2 {[%emt 0:07:46]} Rc8 {[%emt 0:02:38]} 21. g4 {[%emt 0:01:11]} Nb4 {[%emt 0:07:37]} 22. Ne1 {[%emt 0:09:51]} Na2 {[%emt 0:11:56]} 23. Nd3 {[%emt 0:03:34]} Nac3 {[%emt 0:02:04]} 24. f3 {[%emt 0:00:54]} Nxe2 {[%emt 0:01:07]} 25. Qxe2 {[%emt 0:02:36]} Nd2+ {[%emt 0:01:09]} 26. Kg1 {[%emt 0:02:40]} Qc3 {[%emt 0:02:36]} 27. Kg2 {[%emt 0:01:28]} Nxb3 {[%emt 0:01:19]} 28. Rh1 {[%emt 0:00:54]} Qc2 {[%emt 0:04:50]} 29. Qxc2 {[%emt 0:00:25]} Rxc2+ {[%emt 0:00:01]} 30. Kg3 {[%emt 0:00:01]} Rd2 {[%emt 0:01:03]} 31. Ne5 {[%emt 0:00:17]} Ra2 {[%emt 0:00:43]} 32. Rb1 {[%emt 0:00:01]} Ra3 {[%emt 0:00:30]} 33. Nd7 {[%emt 0:00:37]} h6 {[%emt 0:00:27]} 34. Nc5 {[%emt 0:00:22]} Nxc5 {[%emt 0:00:13]} 35. dxc5 {[%emt 0:01:44]} Rc3 {[%emt 0:00:30]} 36. Bb8 {[%emt 0:01:03]} Rxc5 {[%emt 0:00:28]} 37. Bxa7 {[%emt 0:00:02]} Ra5 {[%emt 0:00:34]} 38. Rb8+ {[%emt 0:01:07]} Bf8 {[%emt 0:00:50]} 39. Bd4 {[%emt 0:00:44]} f6 {[%emt 0:00:32]} 40. Rb5 {[%emt 0:00:56]} Rxa4 {[%emt 0:00:21]} 41. Rxd5 {[%emt 0:00:03]} e5 {[%emt 0:00:30]} 42. Bb6 {[%emt 0:00:47]} Ra3 {[%emt 0:00:30]} 43. Rd8 {[%emt 0:00:20]} Kf7 {[%emt 0:00:14]} 44. Rxf8+ {[%emt 0:00:35]} Kxf8 {[%emt 0:00:48]} 45. Bc5+ {[%emt 0:00:01]} Kf7 {[%emt 0:00:01]} 46. Bxa3 {[%emt 0:00:07]} Ke6 {[%emt 0:00:15]} 47. Bf8 {[%emt 0:00:36]} Kf7 {[%emt 0:01:06]} 48. Bxh6 {[%emt 0:00:11]} Kg8 {[%emt 0:00:44]} 49. g5 {[%emt 0:02:09]} f5 {[%emt 0:00:16]} 50. Kf2 {[%emt 0:00:18]} Kf7 {[%emt 0:00:10]} 51. e4 {[%emt 0:00:22]} f4 {[%emt 0:01:06]} 52. Ke2 {[%emt 0:00:01]} Kg8 {[%emt 0:00:05]} 53. Kd3 {[%emt 0:00:09]} Kf7 {[%emt 0:00:08]} 54. Kc4 {[%emt 0:00:05]} Ke6 {[%emt 0:00:11]} 55. Kc5 {[%emt 0:07:08]} 1-0

[Event "17th Memorial Lezcano Montalvo 2025"]
[Site "Gran Canaria"]
[Date "2025.04.16"]
[Round "5.51"]
[White "Castro Miguelez, Jose"]
[Black "Trocoli Romero, Luis Dingyu"]
[Result "1-0"]
[Annotator "NA RC"]
[ECO "B11"]
[WhiteElo "1846"]
[BlackElo "1599"]
[PlyCount "113"]
[EventDate "2025.04.13"]
[EventType "swiss"]
[EventCountry "ESP"]
[SourceTitle "playchess.com"]
[Source "ChessBase"]
[SourceQuality "1"]
[TimeControl "5400+30"]

1. e4 {[%emt 0:00:01]} c6 {[%emt 0:00:05]} 2. Nf3 {[%emt 0:00:20]} d5 {[%emt 0:01:05]} 3. Nc3 {[%emt 0:00:09]} Bg4 {[%emt 0:01:40]} 4. h3 {[%emt 0:00:08]} dxe4 {[%emt 0:06:44]} 5. Nxe4 {[%emt 0:11:57]} Bf5 {[%emt 0:00:08]} 6. Ng3 {[%emt 0:01:34]} Bg6 {[%emt 0:02:06]} 7. h4 {[%emt 0:00:56]} h6 {[%emt 0:00:37]} 8. Ne5 {[%emt 0:01:43]} Qd6 {[%emt 0:05:59]} 9. d4 {[%emt 0:07:46]} Nd7 {[%emt 0:10:43]} 10. Nxg6 {[%emt 0:03:36]} Qxg6 {[%emt 0:15:00]} 11. Bf4 {[%emt 0:06:33]} Nb6 {[%emt 0:01:14]} 12. Be5 {[%emt 0:09:27]} e6 {[%emt 0:02:37]} 13. Bd3 {[%emt 0:00:16]} f5 {[%emt 0:00:23]} 14. Qf3 {[%emt 0:04:04]} Ne7 {[%emt 0:08:35]} 15. c4 {[%emt 0:04:33]} Qg4 {[%emt 0:02:38]} 16. Qxg4 {[%emt 0:01:56]} fxg4 {[%emt 0:00:10]} 17. h5 {[%emt 0:00:47]} Nd7 {[%emt 0:02:44]} 18. Rh4 {[%emt 0:04:05]} O-O-O {[%emt 0:01:24]} 19. O-O-O {[%emt 0:02:05]} c5 {[%emt 0:04:05]} 20. Be4 {[%emt 0:06:02]} Nc6 {[%emt 0:07:22]} 21. Bxc6 {[%emt 0:00:07]} bxc6 {[%emt 0:00:08]} 22. Rxg4 {[%emt 0:05:13]} Rg8 {[%emt 0:20:07]} 23. Ne4 {[%emt 0:03:58]} Be7 {[%emt 0:00:52]} 24. Bd6 {[%emt 0:02:46]} Bf6 {[%emt 0:03:44]} 25. Bxc5 {[%emt 0:04:34]} Nxc5 {[%emt 0:00:15]} 26. Nxc5 {[%emt 0:00:51]} Rge8 {[%emt 0:00:51]} 27. Re4 {[%emt 0:01:16]} Rd6 {[%emt 0:00:51]} 28. f4 {[%emt 0:00:35]} Re7 {[%emt 0:00:22]} 29. Kc2 {[%emt 0:00:45]} Kc7 {[%emt 0:00:28]} 30. b4 {[%emt 0:01:14]} Kb6 {[%emt 0:01:17]} 31. g3 {[%emt 0:00:53]} a5 {[%emt 0:00:40]} 32. Nb3 {[%emt 0:16:20]} Kc7 {[%emt 0:01:01]} 33. Nxa5 {[%emt 0:00:00]} Rd8 {[%emt 0:00:29]} 34. Nb3 {[%emt 0:00:00]} Ra8 {[%emt 0:00:13]} 35. Ra1 {[%emt 0:00:00]} Rd8 {[%emt 0:00:44]} 36. a4 {[%emt 0:00:00]} Red7 {[%emt 0:00:12]} 37. Rd1 {[%emt 0:00:00]} Ra8 {[%emt 0:00:24]} 38. Nc5 {[%emt 0:00:00]} Re7 {[%emt 0:00:41]} 39. Rde1 {[%emt 0:00:00]} Rae8 {[%emt 0:00:20]} 40. Rxe6 {[%emt 0:00:00]} Rxe6 {[%emt 0:00:09]} 41. Rxe6 {[%emt 0:00:00]} Rxe6 {[%emt 0:00:16]} 42. Nxe6+ {[%emt 0:00:00]} Kd6 {[%emt 0:00:03]} 43. f5 {[%emt 0:00:00]} Kd7 {[%emt 0:00:27]} 44. c5 {[%emt 0:00:00]} Kc8 {[%emt 0:00:14]} 45. Kd3 {[%emt 0:00:00]} Kb7 {[%emt 0:00:18]} 46. Kc4 {[%emt 0:00:00]} Kc8 {[%emt 0:00:15]} 47. b5 {[%emt 0:00:00]} cxb5+ {[%emt 0:03:20]} 48. axb5 {[%emt 0:00:00]} g5 {[%emt 0:00:00]} 49. hxg6 {[%emt 0:00:00]} h5 {[%emt 0:00:00]} 50. g7 {[%emt 0:00:00]} Bxg7 {[%emt 0:00:00]} 51. Nxg7 {[%emt 0:00:00]} h4 {[%emt 0:00:00]} 52. gxh4 {[%emt 0:00:00]} Kc7 {[%emt 0:00:00]} 53. f6 {[%emt 0:00:00]} Kd7 {[%emt 0:00:00]} 54. b6 {[%emt 0:00:00]} Kd8 {[%emt 0:00:00]} 55. c6 {[%emt 0:00:00]} Kc8 {[%emt 0:00:00]} 56. Ne6 {[%emt 0:00:00]} Kb8 {[%emt 0:00:00]} 57. f7 {[%emt 0:00:00]} 1-0

[Event "17th Memorial Lezcano Montalvo 2025"]
[Site "Gran Canaria"]
[Date "2025.04.16"]
[Round "5.52"]
[White "Pace, Gabriele"]
[Black "Godoy Mendoza, Rosa Maria"]
[Result "1-0"]
[Annotator "NA RC"]
[ECO "D10"]
[WhiteElo "1895"]
[BlackElo "1440"]
[PlyCount "79"]
[EventDate "2025.04.13"]
[EventType "swiss"]
[EventCountry "ESP"]
[SourceTitle "playchess.com"]
[Source "ChessBase"]
[SourceQuality "1"]
[TimeControl "5400+30"]

1. d4 {[%emt 0:00:02]} d5 {[%emt 0:00:04]} 2. Bf4 {[%emt 0:00:02]} Nf6 {[%emt 0:00:18]} 3. e3 {[%emt 0:00:02]} Bf5 {[%emt 0:00:30]} 4. c4 {[%emt 0:00:09]} c6 {[%emt 0:00:43]} 5. Nc3 {[%emt 0:00:19]} e6 {[%emt 0:00:38]} 6. Qb3 {[%emt 0:00:15]} b6 {[%emt 0:04:08]} 7. Nf3 {[%emt 0:00:23]} Be7 {[%emt 0:00:45]} 8. Ne5 {[%emt 0:01:29]} h6 {[%emt 0:04:19]} 9. Be2 {[%emt 0:00:23]} O-O {[%emt 0:00:49]} 10. O-O {[%emt 0:01:01]} c5 {[%emt 0:02:12]} 11. cxd5 {[%emt 0:05:07]} exd5 {[%emt 0:01:59]} 12. Rac1 {[%emt 0:02:31]} Nbd7 {[%emt 0:02:43]} 13. Ba6 {[%emt 0:02:55]} Nxe5 {[%emt 0:02:06]} 14. Bxe5 {[%emt 0:00:21]} Bc8 {[%emt 0:01:42]} 15. Bxc8 {[%emt 0:03:40]} Rxc8 {[%emt 0:00:19]} 16. Bxf6 {[%emt 0:00:48]} Bxf6 {[%emt 0:00:08]} 17. Nxd5 {[%emt 0:01:19]} c4 {[%emt 0:01:24]} 18. Nxf6+ {[%emt 0:00:16]} Qxf6 {[%emt 0:00:23]} 19. Rxc4 {[%emt 0:00:24]} Qe6 {[%emt 0:02:19]} 20. Rfc1 {[%emt 0:00:33]} Rcd8 {[%emt 0:02:34]} 21. Rc7 {[%emt 0:02:00]} Qxb3 {[%emt 0:00:51]} 22. axb3 {[%emt 0:00:03]} Ra8 {[%emt 0:00:20]} 23. g3 {[%emt 0:00:51]} b5 {[%emt 0:00:27]} 24. Rb7 {[%emt 0:00:17]} a6 {[%emt 0:00:07]} 25. Rcc7 {[%emt 0:00:11]} Rac8 {[%emt 0:00:47]} 26. Ra7 {[%emt 0:00:44]} Rxc7 {[%emt 0:00:18]} 27. Rxc7 {[%emt 0:00:02]} Rb8 {[%emt 0:00:35]} 28. b4 {[%emt 0:00:17]} Kf8 {[%emt 0:00:12]} 29. e4 {[%emt 0:01:01]} Ra8 {[%emt 0:00:35]} 30. Rc5 {[%emt 0:01:04]} Ke7 {[%emt 0:00:28]} 31. f4 {[%emt 0:00:18]} Rd8 {[%emt 0:00:19]} 32. d5 {[%emt 0:00:13]} f6 {[%emt 0:00:06]} 33. Kf2 {[%emt 0:00:25]} g5 {[%emt 0:00:31]} 34. Kf3 {[%emt 0:00:54]} Rd6 {[%emt 0:01:36]} 35. e5 {[%emt 0:01:04]} fxe5 {[%emt 0:00:16]} 36. fxe5 {[%emt 0:00:02]} Rd7 {[%emt 0:00:26]} 37. Ke4 {[%emt 0:00:24]} Rb7 {[%emt 0:00:53]} 38. Rc6 {[%emt 0:00:20]} Ra7 {[%emt 0:00:15]} 39. Rxh6 {[%emt 0:00:21]} a5 {[%emt 0:00:35]} 40. Rh7+ {[%emt 1:18:00]} 1-0

[Event "17th Memorial Lezcano Montalvo 2025"]
[Site "Gran Canaria"]
[Date "2025.04.16"]
[Round "5.53"]
[White "Cabrera Martel, Isaac"]
[Black "Almeida Cubas, Mirella"]
[Result "0-1"]
[Annotator "NA RC"]
[ECO "A45"]
[WhiteElo "1655"]
[BlackElo "1824"]
[PlyCount "74"]
[EventDate "2025.04.13"]
[EventType "swiss"]
[EventCountry "ESP"]
[SourceTitle "playchess.com"]
[Source "ChessBase"]
[SourceQuality "1"]
[TimeControl "5400+30"]

1. d4 {[%emt 0:00:03]} Nf6 {[%emt 0:00:18]} 2. Nc3 {[%emt 0:00:10]} c5 {[%emt 0:00:21]} 3. dxc5 {[%emt 0:07:06]} e6 {[%emt 0:01:44]} 4. e4 {[%emt 0:03:18]} Nc6 {[%emt 0:00:43]} 5. e5 {[%emt 0:18:36]} Nxe5 {[%emt 0:20:15]} 6. Bf4 {[%emt 0:00:26]} Nc6 {[%emt 0:16:39]} 7. Bd6 {[%emt 0:16:36]} Bxd6 {[%emt 0:02:49]} 8. Qxd6 {[%emt 0:00:33]} a6 {[%emt 0:01:27]} 9. Nf3 {[%emt 0:04:54]} Qe7 {[%emt 0:06:09]} 10. Qxe7+ {[%emt 0:05:59]} Kxe7 {[%emt 0:01:43]} 11. O-O-O {[%emt 0:00:34]} Rb8 {[%emt 0:02:22]} 12. Nd2 {[%emt 0:13:27]} b6 {[%emt 0:11:40]} 13. Nde4 {[%emt 0:06:37]} Nxe4 {[%emt 0:02:50]} 14. Nxe4 {[%emt 0:00:08]} f5 {[%emt 0:00:54]} 15. Nd6 {[%emt 0:00:37]} bxc5 {[%emt 0:00:43]} 16. c3 {[%emt 0:02:21]} Ne5 {[%emt 0:03:42]} 17. Be2 {[%emt 0:01:04]} Rb6 {[%emt 0:02:00]} 18. Nxc8+ {[%emt 0:02:04]} Rxc8 {[%emt 0:00:00]} 19. f4 {[%emt 0:00:31]} Nf7 {[%emt 0:02:39]} 20. c4 {[%emt 0:03:06]} Nd6 {[%emt 0:01:12]} 21. Rhe1 {[%emt 0:02:49]} Rcb8 {[%emt 0:01:15]} 22. b3 {[%emt 0:00:14]} a5 {[%emt 0:01:01]} 23. Bf3 {[%emt 0:02:51]} a4 {[%emt 0:00:44]} 24. Re5 {[%emt 0:02:42]} axb3 {[%emt 0:02:20]} 25. axb3 {[%emt 0:00:08]} Rxb3 {[%emt 0:00:59]} 26. Rxc5 {[%emt 0:00:55]} Rc3+ {[%emt 0:01:44]} 27. Kd2 {[%emt 0:01:37]} Rxc4 {[%emt 0:00:40]} 28. Rc1 {[%emt 0:02:17]} Rxc5 {[%emt 0:01:39]} 29. Rxc5 {[%emt 0:00:03]} Ne4+ {[%emt 0:00:12]} 30. Bxe4 {[%emt 0:01:27]} fxe4 {[%emt 0:00:01]} 31. Ke3 {[%emt 0:00:22]} d5 {[%emt 0:00:20]} 32. Rc7+ {[%emt 0:00:48]} Kf6 {[%emt 0:00:12]} 33. g4 {[%emt 0:00:21]} Rb3+ {[%emt 0:01:51]} 34. Ke2 {[%emt 0:00:37]} Rb2+ {[%emt 0:00:00]} 35. Ke3 {[%emt 0:00:07]} Rxh2 {[%emt 0:03:59]} 36. Rd7 {[%emt 0:00:43]} g5 {[%emt 0:00:40]} 37. Ra7 {[%emt 0:01:31]} Rh3+ {[%emt 0:00:58]} 0-1

[Event "17th Memorial Lezcano Montalvo 2025"]
[Site "Gran Canaria"]
[Date "2025.04.16"]
[Round "5.54"]
[White "Sancho Quesada, Juan Pedro"]
[Black "Santos Falcon, Jose"]
[Result "0-1"]
[Annotator "NA RC"]
[ECO "B21"]
[WhiteElo "1503"]
[BlackElo "1689"]
[PlyCount "44"]
[EventDate "2025.04.13"]
[EventType "swiss"]
[EventCountry "ESP"]
[SourceTitle "playchess.com"]
[Source "ChessBase"]
[SourceQuality "1"]
[TimeControl "5400+30"]

1. e4 {[%emt 0:00:05]} c5 {[%emt 0:00:14]} 2. f4 {[%emt 0:00:23]} e5 {[%emt 0:01:31]} 3. d3 {[%emt 0:00:47]} exf4 {[%emt 0:00:45]} 4. Bxf4 {[%emt 0:00:27]} d5 {[%emt 0:00:36]} 5. exd5 {[%emt 0:02:18]} Qxd5 {[%emt 0:00:17]} 6. Nc3 {[%emt 0:00:46]} Qe6+ {[%emt 0:00:44]} 7. Qe2 {[%emt 0:00:25]} Qxe2+ {[%emt 1:29:53]} 8. Bxe2 {[%emt 1:29:19]} Bd7 {[%emt 0:00:00]} 9. Bf3 {[%emt 0:00:00]} Bc6 {[%emt 0:00:00]} 10. Bxc6+ {[%emt 0:00:00]} Nxc6 {[%emt 0:00:00]} 11. O-O-O {[%emt 0:00:00]} Nf6 {[%emt 0:00:00]} 12. Nf3 {[%emt 0:00:00]} h6 {[%emt 0:00:00]} 13. Rhe1+ {[%emt 0:00:00]} Kd7 {[%emt 0:00:00]} 14. Ne5+ {[%emt 0:00:00]} Nxe5 {[%emt 0:00:00]} 15. Bxe5 {[%emt 0:00:00]} Ng4 {[%emt 0:04:00]} 16. Bg3 {[%emt 0:04:00]} Be7 {[%emt 0:00:00]} 17. Nd5 {[%emt 0:00:00]} Bg5+ {[%emt 0:00:00]} 18. Kb1 {[%emt 0:00:00]} Rae8 {[%emt 0:00:00]} 19. Rxe8 {[%emt 0:00:00]} Rxe8 {[%emt 0:00:00]} 20. Rf1 {[%emt 0:00:00]} f6 {[%emt 0:02:30]} 21. c4 {[%emt 0:02:30]} Re2 {[%emt 0:00:00]} 22. h4 {[%emt 0:00:00]} Ne3 {[%emt 0:00:00]} 0-1